bitfinex-derivatives/quotes_BTCF0:USTF0_20250614
["timestamp","ask_amount","ask_price","bid_price","bid_amount"]
[1749943798349,0.001,105430.0,105420.0,0.9220617]
[1749943798542,0.001,105430.0,105420.0,1.8667417]
[1749943801953,0.001,105430.0,105420.0,2.6864617]
[1749943802155,0.05917067,105440.0,105430.0,0.1896266]
[1749943802363,0.63623442,105450.0,105440.0,0.1896086]
[1749943802654,0.54741322,105450.0,105440.0,0.8220886]
[1749943803650,0.73700382,105450.0,105440.0,0.8220886]
[1749943803854,0.74200382,105450.0,105440.0,0.8220886]
[1749943804053,0.92393637,105450.0,105440.0,0.8220886]
[1749943804653,0.92807472,105450.0,105440.0,0.8220886]
[1749943806757,0.92607472,105450.0,105440.0,0.8220886]
[1749943806954,0.92707472,105450.0,105440.0,0.8220886]
[1749943807758,0.92407472,105450.0,105440.0,0.8220886]
[1749943809160,0.92407472,105450.0,105440.0,0.83158467]
[1749943809354,0.92407472,105450.0,105440.0,0.47078467]
[1749943810158,0.95667472,105450.0,105440.0,0.47078467]
[1749943810358,0.98757472,105450.0,105440.0,0.47078467]
[1749943810558,1.01817472,105450.0,105440.0,0.47078467]
[1749943810954,1.01817472,105450.0,105440.0,0.4309886]
[1749943812054,1.01817472,105450.0,105440.0,0.2541086]
[1749943812254,1.37897472,105450.0,105440.0,0.3991886]
[1749943812854,1.01817472,105450.0,105440.0,0.3991886]
[1749943817165,0.83824217,105450.0,105440.0,0.3991886]
[1749943817351,0.83824217,105450.0,105440.0,0.7599886]
[1749943817558,1.01817472,105450.0,105440.0,0.7599886]
[1749943817851,1.01817472,105450.0,105440.0,0.3991886]
[1749943818366,1.01817472,105450.0,105440.0,0.1896086]
[1749943818559,1.01817472,105450.0,105440.0,0.3668886]
[1749943819263,1.10699592,105450.0,105440.0,0.3668886]
[1749943824666,1.10699592,105450.0,105440.0,0.7276886]
[1749943825162,0.85823465,105450.0,105440.0,0.7276886]
[1749943825470,0.88485569,105450.0,105440.0,0.7276886]
[1749943825759,0.88485569,105450.0,105440.0,0.7881886]
[1749943825963,0.88071734,105450.0,105440.0,0.8209886]
[1749943828166,0.8520963,105450.0,105440.0,0.8209886]
[1749943828463,0.67216375,105450.0,105440.0,0.8209886]
[1749943828667,0.8520963,105450.0,105440.0,0.8209886]
[1749943829069,0.85623465,105450.0,105440.0,0.8209886]
[1749943829368,1.04581215,105450.0,105440.0,0.8209886]
[1749943835372,1.06829166,105450.0,105440.0,0.8209886]
[1749943836977,1.06829166,105450.0,105440.0,1.02340066]
[1749943839074,1.06829166,105450.0,105440.0,0.8209886]
[1749943839986,1.06829166,105450.0,105440.0,1.02340066]
[1749943841183,1.06829166,105450.0,105440.0,0.8209886]
[1749943849298,1.06829166,105450.0,105440.0,0.7881886]
[1749943860707,1.06829166,105450.0,105440.0,0.7294086]
[1749943860708,1.27070372,105450.0,105440.0,0.7294086]
[1749943866305,1.06829166,105450.0,105440.0,0.7294086]
[1749943867616,1.27070372,105450.0,105440.0,0.7294086]
[1749943867814,1.27070372,105450.0,105440.0,0.7284886]
[1749943868314,1.27070372,105450.0,105440.0,0.3676886]
[1749943869212,1.06829166,105450.0,105440.0,0.7284886]
[1749943869414,1.06829166,105450.0,105440.0,0.7606886]
[1749943870011,1.06829166,105450.0,105440.0,0.7284886]
[1749943870219,1.27070372,105450.0,105440.0,0.7284886]
[1749943872219,1.38908893,105450.0,105440.0,0.7284886]
[1749943872823,1.27070372,105450.0,105440.0,0.7284886]
[1749943875024,1.06829166,105450.0,105440.0,0.7284886]
[1749943875520,1.06829166,105450.0,105440.0,0.5504086]
[1749943875720,1.06829166,105450.0,105440.0,0.7284886]
[1749943876124,1.27070372,105450.0,105440.0,0.7284886]
[1749943878032,1.06829166,105450.0,105440.0,0.7284886]
[1749943884331,1.27070372,105450.0,105440.0,0.7284886]
[1749943885633,1.06829166,105450.0,105440.0,0.7284886]
[1749943885836,1.06829166,105450.0,105440.0,0.5504086]
[1749943886030,1.27070372,105450.0,105440.0,0.7284886]
[1749943889430,1.27070372,105450.0,105440.0,0.1895955]
[1749943889636,0.1895955,105440.0,105430.0,0.39102991]
[1749943889829,0.57571996,105440.0,105430.0,0.5098916]
[1749943890026,0.57571996,105440.0,105430.0,0.3318116]
[1749943890229,0.57571996,105440.0,105430.0,0.6926116]
[1749943891737,0.58529057,105440.0,105430.0,0.6926116]
[1749943891930,0.76337057,105440.0,105430.0,0.5978031]
[1749943893433,0.76337057,105440.0,105430.0,0.2370031]
[1749943893942,1.12417057,105440.0,105430.0,0.2370031]
[1749943894344,1.15364338,105440.0,105430.0,0.2370031]
[1749943895843,1.15564338,105440.0,105430.0,0.2370031]
[1749943896044,1.15978173,105440.0,105430.0,0.2370031]
[1749943897043,1.16078173,105440.0,105430.0,0.2370031]
[1749943898544,0.79998173,105440.0,105430.0,0.2370031]
[1749943899248,0.88875692,105440.0,105430.0,0.2370031]
[1749943899442,1.24955692,105440.0,105430.0,0.2370031]
[1749943899646,1.16078173,105440.0,105430.0,0.2370031]
[1749943900346,1.24954821,105440.0,105430.0,0.2370031]
[1749943900546,1.131163,105440.0,105430.0,0.2370031]
[1749943901948,1.24954821,105440.0,105430.0,0.2370031]
[1749943902149,1.131163,105440.0,105430.0,0.2370031]
[1749943903350,0.1896135,105430.0,105420.0,1.78679915]
[1749943903553,0.48159083,105430.0,105420.0,1.78679915]
[1749943904351,0.48159083,105430.0,105420.0,0.60627915]
[1749943905054,0.48159083,105430.0,105420.0,0.96707915]
[1749943906950,0.45119083,105430.0,105420.0,0.96707915]
[1749943911260,0.45532918,105430.0,105420.0,0.96707915]
[1749943912755,0.25291712,105430.0,105420.0,0.96707915]
[1749943912954,0.26571568,105430.0,105420.0,1.16949121]
[1749943913351,0.26157733,105430.0,105420.0,1.16949121]
[1749943916265,0.45119073,105430.0,105420.0,1.16949121]
[1749943919269,0.45119073,105430.0,105420.0,1.22870952]
[1749943920962,0.26157733,105430.0,105420.0,1.22870952]
[1749943921165,0.05916527,105430.0,105420.0,1.44956855]
[1749943921363,0.05916527,105440.0,105430.0,0.1896135]
[1749943921561,0.05916527,105440.0,105430.0,1.676963]
[1749943921861,0.05916527,105440.0,105430.0,0.547643]
[1749943922056,0.05916527,105440.0,105430.0,0.84922556]
[1749943922455,0.05916527,105440.0,105430.0,0.908443]
[1749943924067,0.26157733,105440.0,105430.0,0.908443]
[1749943924563,0.26157733,105440.0,105430.0,0.84922556]
[1749943924764,0.26157733,105440.0,105430.0,0.92355467]
[1749943927172,0.45117283,105440.0,105430.0,0.92355467]
[1749943928568,0.26157733,105440.0,105430.0,0.92355467]
[1749943929677,0.45117283,105440.0,105430.0,0.72114261]
[1749943929975,0.45117283,105440.0,105430.0,1.69139467]
[1749943931673,0.45117283,105440.0,105430.0,1.61706556]
[1749943931974,0.45117283,105440.0,105430.0,1.79494556]
[1749943935278,0.26157733,105440.0,105430.0,1.79494556]
[1749943939281,0.45117293,105440.0,105430.0,1.79494556]
[1749943939481,0.26157733,105440.0,105430.0,1.79494556]
[1749943943380,0.05916527,105440.0,105430.0,1.79494556]
[1749943943587,0.26157733,105440.0,105430.0,1.79494556]
[1749943946582,0.35034381,105440.0,105430.0,1.5925335]
[1749943946783,0.35034381,105440.0,105430.0,1.79494556]
[1749943948186,0.35034381,105440.0,105430.0,1.854163]
[1749943949384,0.53993931,105440.0,105430.0,1.65175094]
[1749943949584,0.35034381,105440.0,105430.0,1.854163]
[1749943950086,0.35034381,105440.0,105430.0,1.65175094]
[1749943950385,0.35034381,105440.0,105430.0,1.854163]
[1749943951182,0.53993931,105440.0,105430.0,1.854163]
[1749943951387,0.63493931,105440.0,105430.0,1.854163]
[1749943951591,0.44534381,105440.0,105430.0,1.854163]
[1749943952283,0.63493931,105440.0,105430.0,0.60963094]
[1749943952490,0.57577404,105440.0,105430.0,1.1345335]
[1749943952884,0.57991239,105440.0,105430.0,1.1345335]
[1749943953079,0.94071239,105440.0,105430.0,0.3671335]
[1749943953287,0.94071239,105440.0,105430.0,1.1347335]
[1749943953694,0.57991239,105440.0,105430.0,1.1347335]
[1749943953883,0.94071239,105440.0,105430.0,1.1347335]
[1749943954505,0.1896135,105430.0,105420.0,0.70458859]
[1749943954682,1.13812283,105430.0,105420.0,0.18977405]
[1749943954891,0.93571077,105430.0,105420.0,0.18977405]
[1749943955294,0.94500166,105430.0,105420.0,0.18977405]
[1749943955691,0.94500166,105430.0,105420.0,0.19177405]
[1749943956292,0.93571077,105430.0,105420.0,0.18977405]
[1749943956491,1.02451658,105430.0,105420.0,0.18977405]
[1749943957283,0.88373614,105430.0,105420.0,0.18977405]
[1749943958791,0.89343691,105430.0,105420.0,0.18977405]
[1749943960991,1.06133614,105430.0,105420.0,0.18977405]
[1749943961395,1.09193614,105430.0,105420.0,0.18977405]
[1749943961591,1.15107259,105430.0,105420.0,0.18977405]
[1749943961792,0.79027259,105430.0,105420.0,0.55057405]
[1749943962491,0.61267259,105430.0,105420.0,0.55057405]
[1749943962797,0.33755576,105430.0,105420.0,0.55057405]
[1749943962996,0.24874995,105430.0,105420.0,0.64387405]
[1749943963186,0.54927259,105430.0,105420.0,0.64387405]
[1749943963386,0.61407259,105430.0,105420.0,0.61277405]
[1749943963797,0.61407259,105430.0,105420.0,0.25197405]
[1749943963997,0.61407259,105430.0,105420.0,0.61277405]
[1749943964198,0.61407259,105430.0,105420.0,0.55057405]
[1749943964397,0.61407259,105430.0,105420.0,0.18977405]
[1749943965696,0.97487259,105430.0,105420.0,0.18977405]
[1749943967595,0.97487259,105430.0,105420.0,0.18977395]
[1749943969396,0.94531554,105430.0,105420.0,0.18977395]
[1749943981210,0.96783561,105430.0,105420.0,0.18977395]
[1749943983719,1.11588451,105430.0,105420.0,0.18977395]
[1749943986316,0.96783561,105430.0,105420.0,0.18977395]
[1749943993425,0.96783561,105430.0,105420.0,0.22297395]
[1749943993721,0.96783561,105430.0,105420.0,0.25337395]
[1749943995226,0.8494504,105430.0,105420.0,0.25337395]
[1749943995824,0.9974993,105430.0,105420.0,0.25337395]
[1749943996422,1.1747793,105430.0,105420.0,0.25337395]
[1749944013933,1.1747793,105430.0,105420.0,0.22017395]
[1749944015234,0.9722424,105430.0,105420.0,0.22017395]
[1749944015435,1.1747793,105430.0,105420.0,0.22017395]
[1749944016435,1.1747793,105430.0,105420.0,0.18977395]
[1749944016831,1.3773162,105430.0,105420.0,0.18977395]
[1749944018134,1.1747793,105430.0,105420.0,0.18977395]
[1749944018835,1.1747793,105430.0,105420.0,0.22017395]
[1749944019037,1.1747793,105430.0,105420.0,0.25027395]
[1749944019236,0.5401993,105430.0,105420.0,0.25027395]
[1749944019438,0.7171593,105430.0,105420.0,0.28097395]
[1749944020237,1.0779593,105430.0,105420.0,0.28097395]
[1749944020438,0.7171593,105430.0,105420.0,0.28097395]
[1749944020739,0.5401993,105430.0,105420.0,0.28097395]
[1749944021048,0.7171593,105430.0,105420.0,0.28097395]
[1749944023141,1.0779593,105430.0,105420.0,0.28097395]
[1749944024031,0.7171593,105430.0,105420.0,0.28097395]
[1749944025344,1.0779593,105430.0,105420.0,0.28097395]
[1749944025545,0.7171593,105430.0,105420.0,0.28097395]
[1749944026748,1.0779593,105430.0,105420.0,0.28097395]
[1749944031152,1.1403593,105430.0,105420.0,0.28097395]
[1749944031849,1.1731593,105430.0,105420.0,0.28097395]
[1749944032646,1.14369182,105430.0,105420.0,0.28097395]
[1749944033254,0.30819492,105430.0,105420.0,0.84431085]
[1749944033448,0.11858142,105430.0,105420.0,0.84431085]
[1749944033648,0.08889829,105430.0,105420.0,0.84431085]
[1749944033848,0.29143519,105430.0,105420.0,0.84431085]
[1749944034358,0.14816102,105430.0,105420.0,0.95099139]
[1749944034548,0.05926273,105430.0,105420.0,1.45092119]
[1749944035147,0.05926273,105430.0,105420.0,1.24838429]
[1749944035554,0.05926273,105430.0,105420.0,1.18916685]
[1749944035750,0.05926273,105430.0,105420.0,0.98662995]
[1749944035954,0.05926273,105430.0,105420.0,1.18916685]
[1749944036552,0.58769252,105440.0,105430.0,0.1896135]
[1749944036753,0.58769252,105440.0,105430.0,0.8217735]
[1749944037951,0.59069252,105440.0,105430.0,0.8217735]
[1749944039754,0.59069252,105440.0,105430.0,0.83112479]
[1749944040959,0.38815562,105440.0,105430.0,0.83112479]
[1749944041160,0.59069252,105440.0,105430.0,0.83112479]
[1749944042453,0.35369792,105440.0,105430.0,1.03366169]
[1749944042650,0.54329342,105440.0,105430.0,1.03366169]
[1749944042850,0.45439513,105440.0,105430.0,1.03366169]
[1749944043463,0.26479963,105440.0,105430.0,1.03366169]
[1749944044163,0.45439523,105440.0,105430.0,1.03366169]
[1749944044462,0.26479963,105440.0,105430.0,1.03366169]
[1749944044764,0.06226273,105440.0,105430.0,1.80162169]
[1749944045162,0.003,105440.0,105430.0,1.80162169]
[1749944045962,0.1925956,105440.0,105430.0,1.80162169]
[1749944046167,0.3951325,105440.0,105430.0,1.80162169]
[1749944046664,0.45439523,105440.0,105430.0,1.80162169]
[1749944047669,0.3951325,105440.0,105430.0,1.80162169]
[1749944050964,0.1925956,105440.0,105430.0,1.80162169]
[1749944051272,0.003,105440.0,105430.0,1.81979322]
[1749944052270,0.002,105440.0,105430.0,1.81979322]
[1749944053473,0.002,105440.0,105430.0,2.63943322]
[1749944054169,1.08182098,105450.0,105440.0,0.1895955]
[1749944054372,1.03442478,105450.0,105440.0,0.8174324]
[1749944055271,1.03742478,105450.0,105440.0,0.8174324]
[1749944055574,1.03742478,105450.0,105440.0,0.6148955]
[1749944056671,1.06942478,105450.0,105440.0,0.6148955]
[1749944056872,1.06942478,105450.0,105440.0,0.2540955]
[1749944057168,1.06942478,105450.0,105440.0,0.6148955]
[1749944059680,0.93168788,105450.0,105440.0,0.6148955]
[1749944059874,0.86688788,105450.0,105440.0,1.7616324]
[1749944060173,1.06942478,105450.0,105440.0,1.5899955]
[1749944060376,1.09982478,105450.0,105440.0,1.5899955]
[1749944060881,1.18872307,105450.0,105440.0,1.5590955]
[1749944061082,1.22182307,105450.0,105440.0,1.5590955]
[1749944061486,1.22182307,105450.0,105440.0,0.5503955]
[1749944061688,1.22182307,105450.0,105440.0,1.4945955]
[1749944065590,1.22182307,105450.0,105440.0,0.5503955]
[1749944065887,1.22182307,105450.0,105440.0,1.4945955]
[1749944066588,1.16256034,105450.0,105440.0,1.4945955]
[1749944067890,1.16256034,105450.0,105440.0,0.5503955]
[1749944068089,1.36509724,105450.0,105440.0,1.1337955]
[1749944068486,1.48367866,105450.0,105440.0,1.1337955]
[1749944068782,1.07860486,105450.0,105440.0,1.1337955]
[1749944068987,1.48367866,105450.0,105440.0,1.1337955]
[1749944069387,1.36509724,105450.0,105440.0,1.1337955]
[1749944072889,1.36509724,105450.0,105440.0,0.3667955]
[1749944077094,1.36509724,105450.0,105440.0,0.1895955]
[1749944077297,1.36509724,105450.0,105440.0,0.3665155]
[1749944077594,1.36509724,105450.0,105440.0,0.1895955]
[1749944077793,1.36509724,105450.0,105440.0,0.3665155]
[1749944077994,1.16256034,105450.0,105440.0,0.3665155]
[1749944078293,1.36509724,105450.0,105440.0,0.3665155]
[1749944078794,0.96002344,105450.0,105440.0,0.3665155]
[1749944078987,1.36509724,105450.0,105440.0,0.3665155]
[1749944089704,1.39478037,105450.0,105440.0,0.3665155]
[1749944091905,1.36510462,105450.0,105440.0,0.1895955]
[1749944093005,1.16256772,105450.0,105440.0,0.1895955]
[1749944099308,1.07366205,105450.0,105440.0,0.1895955]
[1749944099805,1.02626705,105450.0,105440.0,0.5503955]
[1749944100009,0.78269791,105450.0,105440.0,0.7856324]
[1749944100207,0.78269791,105450.0,105440.0,0.8499324]
[1749944100510,0.97227551,105450.0,105440.0,0.8499324]
[1749944100709,0.97227551,105450.0,105440.0,0.2541955]
[1749944101013,1.06667551,105450.0,105440.0,0.6149955]
[1749944101311,1.06567551,105450.0,105440.0,0.6149955]
[1749944101509,1.18425693,105450.0,105440.0,0.6149955]
[1749944101711,1.06567551,105450.0,105440.0,0.6149955]
[1749944101912,1.06367551,105450.0,105440.0,0.6149955]
[1749944103213,1.06567551,105450.0,105440.0,0.6149955]
[1749944103412,1.06667551,105450.0,105440.0,0.6149955]
[1749944106516,1.06667551,105450.0,105440.0,0.7919155]
[1749944116623,1.06667551,105450.0,105440.0,0.6149955]
[1749944117028,1.26921241,105450.0,105440.0,0.6149955]
[1749944122741,1.06667551,105450.0,105440.0,0.6149955]
[1749944123746,1.09633847,105450.0,105440.0,0.6149955]
[1749944123945,1.1852401,105450.0,105440.0,0.6149955]
[1749944124245,1.09633847,105450.0,105440.0,0.6149955]
[1749944126243,0.1895956,105440.0,105430.0,0.72259287]
[1749944126447,0.69462401,105440.0,105430.0,0.84025543]
[1749944126639,0.60571392,105440.0,105430.0,0.54275543]
[1749944126840,0.57601677,105440.0,105430.0,0.54275543]
[1749944127042,0.69459819,105440.0,105430.0,0.54275543]
[1749944127237,0.57601677,105440.0,105430.0,0.90355543]
[1749944127446,0.57601677,105440.0,105430.0,0.54275543]
[1749944133950,0.57601677,105440.0,105430.0,0.90355543]
[1749944134452,0.57601677,105440.0,105430.0,0.54275543]
[1749944135751,0.57601677,105440.0,105430.0,0.90355543]
[1749944136256,0.57601677,105440.0,105430.0,0.54275543]
[1749944137060,0.57601677,105440.0,105430.0,0.93365543]
[1749944137451,0.57601677,105440.0,105430.0,0.77539233]
[1749944137761,0.63522235,105440.0,105430.0,1.13619233]
[1749944138265,0.57601677,105440.0,105430.0,1.13619233]
[1749944138558,0.63522161,105440.0,105430.0,0.77539233]
[1749944138948,0.57601677,105440.0,105430.0,0.77539233]
[1749944139147,0.57601677,105440.0,105430.0,0.93365543]
[1749944139349,0.63522112,105440.0,105430.0,0.93365543]
[1749944139957,0.57601677,105440.0,105430.0,0.93365543]
[1749944140159,0.63522067,105440.0,105430.0,0.57285543]
[1749944140860,0.57601677,105440.0,105430.0,0.57285543]
[1749944141055,0.6352207,105440.0,105430.0,0.57285543]
[1749944141861,0.6352207,105440.0,105430.0,0.77539233]
[1749944142456,0.6352207,105440.0,105430.0,1.13619233]
[1749944142657,0.6352207,105440.0,105430.0,0.57285543]
[1749944143358,0.6352207,105440.0,105430.0,0.93365543]
[1749944144256,0.57601677,105440.0,105430.0,0.57285543]
[1749944144762,0.57601677,105440.0,105430.0,0.93365543]
[1749944148964,0.57601677,105440.0,105430.0,0.57285543]
[1749944149359,0.57601677,105440.0,105430.0,0.93365543]
[1749944149862,0.57601677,105440.0,105430.0,0.75677543]
[1749944150064,0.57601677,105440.0,105430.0,0.93365543]
[1749944156468,0.57601677,105440.0,105430.0,0.57285543]
[1749944156675,0.57606466,105440.0,105430.0,0.93365543]
[1749944158268,0.60571392,105440.0,105430.0,0.93365543]
[1749944160476,0.60571392,105440.0,105430.0,0.57285543]
[1749944160975,0.60571392,105440.0,105430.0,0.54275543]
[1749944172783,0.60571392,105440.0,105430.0,0.90355543]
[1749944172979,0.69464122,105440.0,105430.0,0.90355543]
[1749944173382,0.69464122,105440.0,105430.0,0.8853839]
[1749944173580,0.66164122,105440.0,105430.0,0.7085039]
[1749944173783,0.60491392,105440.0,105430.0,0.8853039]
[1749944174989,0.69384126,105440.0,105430.0,0.8853039]
[1749944175283,0.60491392,105440.0,105430.0,0.8853039]
[1749944177893,0.69384191,105440.0,105430.0,0.8853039]
[1749944181698,0.60491392,105440.0,105430.0,0.8853039]
[1749944191009,0.69384431,105440.0,105430.0,0.8853039]
[1749944191507,0.60491392,105440.0,105430.0,0.8853039]
[1749944196608,0.57271392,105440.0,105430.0,0.9184039]
[1749944207616,0.51071392,105440.0,105430.0,0.9184039]
[1749944218328,0.59963893,105440.0,105430.0,0.9184039]
[1749944221829,0.63223893,105440.0,105430.0,0.9184039]
[1749944222027,0.69443893,105440.0,105430.0,0.9184039]
[1749944223232,0.60551392,105440.0,105430.0,0.9184039]
[1749944223929,0.57585849,105440.0,105430.0,0.9184039]
[1749944233844,0.93665849,105440.0,105430.0,0.4136437]
[1749944234239,0.96631392,105440.0,105430.0,0.4136437]
[1749944234844,0.8477325,105440.0,105430.0,0.2370037]
[1749944236247,0.4869325,105440.0,105430.0,0.2370037]
[1749944236445,0.2843956,105440.0,105430.0,0.2370037]
[1749944236745,0.4869325,105440.0,105430.0,0.2370037]
[1749944241056,0.57583636,105440.0,105430.0,0.2370037]
[1749944243857,0.4869325,105440.0,105430.0,0.2370037]
[1749944245050,0.4889325,105440.0,105430.0,0.2370037]
[1749944245246,0.4919325,105440.0,105430.0,0.2370037]
[1749944245852,0.6685725,105440.0,105430.0,0.2370037]
[1749944248958,0.4660356,105440.0,105430.0,0.2370037]
[1749944249155,0.48602,105440.0,105430.0,0.8003406]
[1749944249457,0.0938875,105440.0,105430.0,0.8949406]
[1749944249959,0.08903005,105450.0,105440.0,0.1895956]
[1749944250157,0.08903005,105450.0,105440.0,1.05093114]
[1749944250360,0.00014255,105450.0,105440.0,0.9916725]
[1749944251062,0.00014255,105450.0,105440.0,0.87429114]
[1749944251264,0.00014255,105450.0,105440.0,1.81737114]
[1749944251562,0.00014255,105450.0,105440.0,1.7581125]
[1749944252059,0.00014255,105450.0,105440.0,1.7591125]
[1749944252657,0.20267945,105450.0,105440.0,1.7591125]
[1749944253764,0.39225695,105450.0,105440.0,1.7591125]
[1749944253966,0.39225695,105450.0,105440.0,1.5565756]
[1749944254853,0.39225695,105450.0,105440.0,0.6134956]
[1749944255166,0.42235695,105450.0,105440.0,1.5565356]
[1749944255366,0.51124445,105450.0,105440.0,1.5565356]
[1749944256164,0.51224445,105450.0,105440.0,1.5555356]
[1749944256366,0.42335695,105450.0,105440.0,1.5555356]
[1749944257164,0.42435695,105450.0,105440.0,1.5555356]
[1749944257464,0.22182005,105450.0,105440.0,1.5555356]
[1749944257665,0.42435695,105450.0,105440.0,1.5555356]
[1749944259265,0.42435695,105450.0,105440.0,1.7580725]
[1749944266572,0.39425695,105450.0,105440.0,1.7580725]
[1749944267168,0.39425695,105450.0,105440.0,1.4298725]
[1749944267369,0.39425695,105450.0,105440.0,1.7906725]
[1749944269173,0.39425695,105450.0,105440.0,1.4298725]
[1749944269375,0.48314445,105450.0,105440.0,1.7906725]
[1749944277782,0.48314445,105450.0,105440.0,1.3971125]
[1749944278079,0.51584445,105450.0,105440.0,0.8150325]
[1749944278279,0.57844445,105450.0,105440.0,1.7579125]
[1749944282580,0.54714445,105450.0,105440.0,1.7579125]
[1749944283081,0.57924445,105450.0,105440.0,1.7579125]
[1749944285280,0.57924445,105450.0,105440.0,0.6124956]
[1749944285484,0.57924445,105450.0,105440.0,1.5249756]
[1749944285685,0.57924445,105450.0,105440.0,1.1641756]
[1749944286583,0.57924445,105450.0,105440.0,0.2212956]
[1749944286779,0.57924445,105450.0,105440.0,1.1324756]
[1749944286983,0.57924445,105450.0,105440.0,0.1895956]
[1749944287283,0.57924445,105450.0,105440.0,1.1324756]
[1749944291585,0.57924445,105450.0,105440.0,0.3661956]
[1749944292083,0.57924445,105450.0,105440.0,0.4302956]
[1749944300293,0.69782587,105450.0,105440.0,0.4302956]
[1749944301587,0.49035695,105450.0,105440.0,0.4302956]
[1749944304897,0.28782005,105450.0,105440.0,0.4302956]
[1749944305097,0.45825695,105450.0,105440.0,0.4302956]
[1749944305298,0.45825695,105450.0,105440.0,0.6649325]
[1749944309503,0.39425695,105450.0,105440.0,0.6649325]
[1749944313406,0.39425695,105450.0,105440.0,0.4623956]
[1749944313608,0.39425695,105450.0,105440.0,0.4883325]
[1749944313906,0.39425695,105450.0,105440.0,0.6648925]
[1749944314906,0.39425695,105450.0,105440.0,0.4883325]
[1749944315213,0.48317621,105450.0,105440.0,0.6648925]
[1749944317813,0.60173523,105450.0,105440.0,0.6648925]
[1749944318811,0.1895957,105440.0,105430.0,0.65655816]
[1749944319107,0.54033417,105440.0,105430.0,0.66263992]
[1749944319314,0.54033417,105440.0,105430.0,0.86517682]
[1749944321016,0.54033417,105440.0,105430.0,0.86617682]
[1749944322309,0.54033417,105440.0,105430.0,1.22697682]
[1749944325417,0.54033417,105440.0,105430.0,0.86617682]
[1749944325621,0.54033417,105440.0,105430.0,1.22697682]
[1749944327418,0.54033417,105440.0,105430.0,0.86617682]
[1749944327618,0.54033417,105440.0,105430.0,1.22697682]
[1749944328319,0.45141491,105440.0,105430.0,1.22697682]
[1749944329619,0.45141491,105440.0,105430.0,0.86617682]
[1749944329824,0.45141491,105440.0,105430.0,1.22697682]
[1749944330121,0.54033417,105440.0,105430.0,1.22697682]
[1749944330317,0.45141491,105440.0,105430.0,1.22697682]
[1749944333730,0.45141491,105440.0,105430.0,0.86617682]
[1749944334227,0.45141491,105440.0,105430.0,1.22697682]
[1749944334629,0.45141491,105440.0,105430.0,1.05041682]
[1749944334830,0.45141491,105440.0,105430.0,1.99301682]
[1749944336629,0.45141491,105440.0,105430.0,1.99715517]
[1749944337223,0.45141491,105440.0,105430.0,1.63635517]
[1749944337428,0.45141491,105440.0,105430.0,1.99301682]
[1749944337725,0.54033417,105440.0,105430.0,1.99301682]
[1749944338630,0.54033417,105440.0,105430.0,1.63221682]
[1749944339031,0.54033417,105440.0,105430.0,1.99301682]
[1749944339229,0.54033417,105440.0,105430.0,1.63221682]
[1749944339423,0.54033417,105440.0,105430.0,1.99301682]
[1749944339626,0.57073417,105440.0,105430.0,1.63221682]
[1749944340124,0.57073417,105440.0,105430.0,1.99301682]
[1749944340326,0.57073417,105440.0,105430.0,1.63221682]
[1749944340525,0.57073417,105440.0,105430.0,1.933738]
[1749944340726,0.57073417,105440.0,105430.0,1.99301682]
[1749944342424,0.57073417,105440.0,105430.0,1.79047992]
[1749944342626,0.57073417,105440.0,105430.0,1.63635517]
[1749944342819,0.57073417,105440.0,105430.0,1.57707635]
[1749944343521,0.57073417,105440.0,105430.0,1.572938]
[1749944344024,0.57073417,105440.0,105430.0,1.3704011]
[1749944345030,0.57073417,105440.0,105430.0,0.4278011]
[1749944345234,0.63373417,105440.0,105430.0,0.3960011]
[1749944345427,0.4855326,105440.0,105430.0,1.1331596]
[1749944345929,0.4855326,105440.0,105430.0,0.3670796]
[1749944346426,0.49483006,105440.0,105430.0,0.3670796]
[1749944347521,0.85563006,105440.0,105430.0,0.3670796]
[1749944352534,0.85563006,105440.0,105430.0,0.1905996]
[1749944352835,0.85563006,105440.0,105430.0,0.3671196]
[1749944365749,0.85563006,105440.0,105430.0,0.3670396]
[1749944370050,0.49483006,105440.0,105430.0,0.4314396]
[1749944370652,0.85563006,105440.0,105430.0,0.4314396]
[1749944370849,0.49483006,105440.0,105430.0,0.4314396]
[1749944371053,0.85563006,105440.0,105430.0,0.4314396]
[1749944371246,0.49483006,105440.0,105430.0,0.4314396]
[1749944371543,0.85563006,105440.0,105430.0,0.4314396]
[1749944371753,0.85563006,105440.0,105430.0,0.2549996]
[1749944371952,0.85563006,105440.0,105430.0,0.4314396]
[1749944387174,0.85563006,105440.0,105430.0,0.43557795]
[1749944387370,0.65309316,105440.0,105430.0,0.43557795]
[1749944387573,0.85563006,105440.0,105430.0,0.43557795]
[1749944387875,0.49483006,105440.0,105430.0,0.46737795]
[1749944388173,0.3921326,105440.0,105430.0,0.46737795]
[1749944391175,0.3921326,105440.0,105430.0,0.4632396]
[1749944392175,0.3921326,105440.0,105430.0,0.46737795]
[1749944392677,0.7529326,105440.0,105430.0,0.46737795]
[1749944392875,0.3921326,105440.0,105430.0,0.46737795]
[1749944393089,0.7529326,105440.0,105430.0,0.46737795]
[1749944393279,0.7529326,105440.0,105430.0,0.4632396]
[1749944394674,0.7846326,105440.0,105430.0,0.4632396]
[1749944395477,0.8471326,105440.0,105430.0,0.4632396]
[1749944396379,0.4863326,105440.0,105430.0,0.4632396]
[1749944396578,0.8471326,105440.0,105430.0,0.4632396]
[1749944397881,0.8471326,105440.0,105430.0,0.4314396]
[1749944400884,0.4863326,105440.0,105430.0,0.4314396]
[1749944401585,0.4863326,105440.0,105430.0,0.4642396]
[1749944402286,0.4542326,105440.0,105430.0,0.4642396]
[1749944406789,0.3921326,105440.0,105430.0,0.8511365]
[1749944407084,0.70017868,105450.0,105440.0,0.1895958]
[1749944407283,0.48824255,105450.0,105440.0,0.8473327]
[1749944407682,0.48824255,105450.0,105440.0,1.6132127]
[1749944408281,0.48924255,105450.0,105440.0,1.6132127]
[1749944408481,0.49024255,105450.0,105440.0,1.6132127]
[1749944408991,0.00214255,105450.0,105440.0,1.6132127]
[1749944416291,0.20467945,105450.0,105440.0,1.6132127]
[1749944417096,0.00214255,105450.0,105440.0,1.6132127]
[1749944422498,0.00214255,105450.0,105440.0,0.8473327]
[1749944422799,0.20467945,105450.0,105440.0,1.7893327]
[1749944426202,0.00214255,105450.0,105440.0,1.7893327]
[1749944426500,0.20467945,105450.0,105440.0,1.7893327]
[1749944429298,0.00214255,105450.0,105440.0,1.7893327]
[1749944429503,0.20467945,105450.0,105440.0,1.7893327]
[1749944431598,0.00214255,105450.0,105440.0,1.7893327]
[1749944431805,0.20467945,105450.0,105440.0,1.7893327]
[1749944439514,0.39425735,105450.0,105440.0,1.7893327]
[1749944440409,0.20467945,105450.0,105440.0,1.7893327]
[1749944441606,0.39425725,105450.0,105440.0,1.7893327]
[1749944449423,0.20467945,105450.0,105440.0,1.7893327]
[1749944454125,0.20467945,105450.0,105440.0,0.8473327]
[1749944454314,0.20467945,105450.0,105440.0,1.7890527]
[1749944455626,0.39425725,105450.0,105440.0,1.7890527]
[1749944457525,0.39425725,105450.0,105440.0,0.8473327]
[1749944457727,0.39425725,105450.0,105440.0,1.7890527]
[1749944458524,0.39425725,105450.0,105440.0,1.1313158]
[1749944458828,0.48915725,105450.0,105440.0,1.4921158]
[1749944459728,0.48915725,105450.0,105440.0,1.1313158]